Cogmind - Beta 10.2 @@@ ROGUE MODE // 2021.03.10 @ 15:20:05 Player: Marshall Result: Self-destructed Performance ------------- Evolutions (1) 500 Regions Visited (3) 600 Robots Destroyed (23) 115 Value Destroyed (367) 367 Prototype IDs (1) 20 Alien Tech Used (0) 0 Bonus (0) 0 TOTAL SCORE: 1602 Bonus ------- None Cogmind --------- Core Integrity 302/400 Matter 245/300 Energy 100/100 System Corruption 0% Temperature Cool (0) Movement Core (100) Ox1 Location -9/Materials Parts ------- > --- POWER (2) -------- (None) > --- PROPULSION (2) --- (None) > --- UTILITY (2) ------ Heat Sink Small Storage Unit > --- WEAPON (3) ------- (None) > --- INVENTORY (6) ---- Ion Engine Light Treads Flight Unit Heat Sink Experimental Sensor Array Core Shielding Peak State ------------ > --- POWER ------------ Light Ion Engine > --- PROPULSION ------- Wheel Compact Wheel > --- UTILITY ---------- Small Storage Unit Experimental Sensor Array > --- WEAPON ----------- Small Laser Spread Laser Assault Rifle > --- INVENTORY -------- Ion Engine Light Treads Flight Unit Heat Sink Core Shielding [Rating: 14] Favorites ----------- Power Light Ion Engine Engine Light Ion Engine Propulsion Wheel Leg Aluminum Leg Wheel Wheel Utility Small Storage Unit Device Heat Sink Storage Small Storage Unit Protection Core Shielding Weapon Assault Rifle Energy Gun Spread Laser Ballistic Gun Assault Rifle Build | -11 -10 -10 -9 ------- Run | Scr Mat Min Mat Slots Evolved 2 | . . . 2 Power 1 | . . . 1 Propulsion . | . . . . Utility . | . . . . Weapon 1 | . . . 1 Parts Attached 18 | 5 9 1 3 Power 4 | 1 3 . . Engine 4 | 1 3 . . Core . | . . . . Reactor . | . . . . Propulsion 4 | 1 3 . . Treads . | . . . . Leg 2 | 1 1 . . Wheel 2 | . 2 . . Hover . | . . . . Flight . | . . . . Utility 5 | 1 2 1 1 Device 3 | . 1 1 1 Storage 1 | 1 . . . Processor . | . . . . Hackware . | . . . . Protection 1 | . 1 . . Artifact . | . . . . Weapon 5 | 2 1 . 2 Energy Gun 3 | . 1 . 2 Energy Cannon . | . . . . Ballistic Gun 2 | 2 . . . Ballistic Cannon . | . . . . Launcher . | . . . . Special Weapon . | . . . . Impact Weapon . | . . . . Slashing Weapon . | . . . . Piercing Weapon . | . . . . Special Melee Weapon . | . . . . Unidentified Prototypes 1 | . . 1 . Parts Lost 6 | . . . 6 Power 1 | . . . 1 Propulsion 2 | . . . 2 Utility . | . . . . Weapon 3 | . . . 3 Highest Loss Streak 6 | . . . 6 Average Slot Usage (%) 94 | . 95 100 75 Engine 13 | . 14 14 9 Leg 2 | . 4 . . Wheel 21 | . 20 28 16 Device 8 | . 7 10 11 Storage 13 | . 14 14 11 Protection 4 | . 4 3 . Energy Gun 10 | . 7 14 17 Ballistic Gun 17 | . 20 14 9 Naked Turns . | . . . . Heaviest Build 16 | 10 15 13 16 Greatest Support 26 | 10 26 26 26 Greatest Overweight (x) 4 | . 1 . 4 Average Overweight (x) . | . . . . Largest Inventory Capacity 6 | 6 6 6 6 Average Capacity 5 | 5 6 6 6 Most Carried 6 | 6 6 6 6 Average Carried 5 | 4 5 5 5 Final Capacity 6 | 6 6 6 6 Final Carried 6 | 6 5 6 6 Class Distribution -------------------- 92% | Mutant 7% | Skirmisher Dominant Class ---------------- Mutant | -10/Materials Mutant | -10/Mines Skirmisher | -9/Materials Resources | -11 -10 -10 -9 ----------- Run | Scr Mat Min Mat Matter Collected 583 | 270 265 . 48 Remotely . | . . . . Salvage Created 619 | 76 481 . 62 Parts 42 | 1 36 . 5 Haulers Intercepted 1 | . 1 . . Recyclers Shooed 1 | . 1 . . Parts Field Recycled . | . . . . Retrieved Matter . | . . . . Parts Self-Destructed . | . . . . Prevented . | . . . . Kills | -11 -10 -10 -9 ------- Run | Scr Mat Min Mat Combat Hostiles Destroyed 9 | . 8 . 1 Guns 9 | . 8 . 1 Classes Destroyed 9 | 1 7 . 1 Worker 6 | . 6 . . Builder 1 | . 1 . . Hauler 1 | . 1 . . Recycler 2 | 1 1 . . Operator 2 | . 2 . . Watcher 2 | . 1 . 1 Swarmer 3 | . 3 . . Grunt 5 | . 5 . . Sentry 1 | . . . 1 Best Kill Streak 5 | 1 5 . 2 Combat Bots Only 2 | . 2 . 1 Max Kills in Single Turn 1 | 1 1 . 1 Gunslinging . | . . . . Exploded . | . . . . Melee . | . . . . Uniques/NPCs Destroyed . | . . . . Combat | -11 -10 -10 -9 -------- Run | Scr Mat Min Mat Damage Taken 713 | . 347 . 366 Core 189 | . 91 . 98 Absorbed by Shields . | . . . . Core Remaining (%) 81 | 100 . 63 . Volleys Fired 84 | 5 71 . 8 Largest 3 | 2 2 . 3 Hottest 141 | 40 85 . 141 Shots Fired 172 | 10 139 . 23 Gun 172 | 10 139 . 23 Cannon . | . . . . Launcher . | . . . . Special . | . . . . Kinetic 120 | 10 102 . 8 Thermal 52 | . 37 . 15 Explosive . | . . . . Electromagnetic . | . . . . Robot Hit Streak 11 | 3 11 . 6 Robot Miss Streak 8 | 2 7 . 8 Penetration Max . | . . . . Secondary Targets 3 | . 3 . . Max Gunslinging Chain 1 | . 1 . . Shots Hit Robots 124 | 6 103 . 15 Core Hits 56 | 2 44 . 10 Critical Hits 2 | . 2 . . Critical Kills 1 | . 1 . . Critical Parts Destroyed 1 | . 1 . . Melee Attacks . | . . . . Impact . | . . . . Slashing . | . . . . Piercing . | . . . . Sneak Attacks . | . . . . Combat Hostiles . | . . . . Follow-up Attacks . | . . . . Damage Inflicted 1144 | 72 935 . 137 Guns 1049 | 72 840 . 137 Cannons . | . . . . Explosions 95 | . 95 . . Melee . | . . . . Ramming . | . . . . Kinetic 719 | 72 609 . 38 Thermal 425 | . 326 . 99 Explosive . | . . . . Electromagnetic . | . . . . Impact . | . . . . Slashing . | . . . . Piercing . | . . . . Highest Corruption . | . . . . Average Corruption . | . . . . Corruption Purged . | . . . . Overload Shots . | . . . . Overflow Damage . | . . . . Projectiles . | . . . . Explosions . | . . . . Melee . | . . . . Knockbacks . | . . . . Impact . | . . . . Kinetic . | . . . . Secondary . | . . . . Self-Inflicted Damage . | . . . . Shots . | . . . . Rammed . | . . . . Targets Rammed . | . . . . Kicked . | . . . . Crushed . | . . . . Highest Temperature 238 | . 238 . 202 Average Temperature 80 | . 81 . 80 Received Heat Transfer 165 | . 102 . 63 Effects 1 | . . . 1 Energy Bleed 1 | . . . 1 Siege Activations . | . . . . Robots Corrupted . | . . . . Combat Hostiles . | . . . . Parts Fried . | . . . . Impact Corruptions . | . . . . Robots Melted . | . . . . Combat Hostiles . | . . . . Parts Melted . | . . . . Heat Transferred 497 | . 335 . 162 Parts Sabotaged . | . . . . Parts Stolen . | . . . . Parts Stripped . | . . . . Power Chain Reactions . | . . . . Missiles Intercepted . | . . . . Alert | -11 -10 -10 -9 ------- Run | Scr Mat Min Mat Peak Influence 176 | 5 176 67 78 Initial 67 | . 3 67 26 Average 88 | 1 113 67 35 Maximum Alert Level . | . . . . Low Security (%) 100 | 100 100 100 100 Level 1 . | . . . . Level 2 . | . . . . Level 3 . | . . . . Level 4 . | . . . . Level 5 . | . . . . High Security . | . . . . Max Security . | . . . . Squads Dispatched 2 | . 2 . . Investigation . | . . . . Extermination . | . . . . Reinforcement 2 | . 2 . . Assault . | . . . . Garrison . | . . . . Intercept . | . . . . Construction Impeded . | . . . . Haulers Reinforced . | . . . . Stealth | -11 -10 -10 -9 --------- Run | Scr Mat Min Mat Distress Signals . | . . . . Communications Jammed . | . . . . Distress Signals . | . . . . Times Spotted 22 | . 14 . 8 Peak Tracking Total 6 | . 4 . 6 Tactical Retreats 1 | . 1 . . Traps | -11 -10 -10 -9 ------- Run | Scr Mat Min Mat Traps Triggered . | . . . . Indirectly . | . . . . Trap Hack Attempts . | . . . . Triggered . | . . . . Disarmed . | . . . . Reprogrammed . | . . . . Reused . | . . . . Traps Extracted . | . . . . Installed . | . . . . Triggered . | . . . . Machines | -11 -10 -10 -9 ---------- Run | Scr Mat Min Mat Machines Disabled 2 | . 2 . . Max in Single Turn 2 | . 2 . . Machines Sabotaged . | . . . . Garrisons Compromised . | . . . . Overloaded Fab Kills . | . . . . Fab Network Shutdowns . | . . . . Hacking | -11 -10 -10 -9 --------- Run | Scr Mat Min Mat Machines Accessed 2 | . 2 . . Terminals 2 | . 2 . . Fabricators . | . . . . Repair Stations . | . . . . Recycling Units . | . . . . Scanalyzers . | . . . . Garrison Access . | . . . . Total Hacks 5 | . 5 . . Successful 3 | . 3 . . Failed 2 | . 2 . . Catastrophic . | . . . . Database Lockouts . | . . . . Manual . | . . . . Terminals 5 | . 5 . . Fabricators . | . . . . Repair Stations . | . . . . Recycling Units . | . . . . Scanalyzers . | . . . . Garrison Access . | . . . . Terminal Hacks 3 | . 3 . . Alert Level 1 | . 1 . . Locate Traps 1 | . 1 . . Zone Layout 1 | . 1 . . Fabricator Hacks . | . . . . Repair Station Hacks . | . . . . Recycling Unit Hacks . | . . . . Scanalyzer . | . . . . Garrison Access Hacks . | . . . . Unauthorized Hacks . | . . . . Terminals . | . . . . Fabricators . | . . . . Repair Stations . | . . . . Recycling Units . | . . . . Scanalyzers . | . . . . Garrison Access . | . . . . Data Cores Recovered . | . . . . Used . | . . . . Hacking Detections . | . . . . Full Trace Events . | . . . . Feedback Events . | . . . . Feedback Blocked . | . . . . Robot Schematics Acquired . | . . . . Robots Built . | . . . . Matter . | . . . . Time . | . . . . Total Robot Build Rating . | . . . . Part Schematics Acquired . | . . . . Parts Built . | . . . . Matter . | . . . . Time . | . . . . Total Part Build Rating . | . . . . Parts Repaired . | . . . . Time . | . . . . Parts Recycled . | . . . . Recycled Matter . | . . . . Retrieved Matter . | . . . . Retrieved Components . | . . . . Parts Scanalyzed . | . . . . Part Schematics Acquired . | . . . . Parts Damaged . | . . . . Bothacking | -11 -10 -10 -9 ------------ Run | Scr Mat Min Mat Used RIF Installer . | . . . . Robots Hacked . | . . . . Non-combat . | . . . . Combat . | . . . . Robot Hacks Applied . | . . . . Relay Couplers Released . | . . . . Robots Rewired . | . . . . Allies Hacked . | . . . . Hacks Repelled . | . . . . Allies | -11 -10 -10 -9 -------- Run | Scr Mat Min Mat Total Allies . | . . . . Largest Group . | . . . . Highest-Rated Group . | . . . . Highest-Rated Ally . | . . . . Total Orders . | . . . . Ally Attacks . | . . . . Total Damage . | . . . . Kills . | . . . . Allies Corrupted . | . . . . Allies Melted . | . . . . Intel | -11 -10 -10 -9 ------- Run | Scr Mat Min Mat Robot Analysis Total . | . . . . Derelict Logs Recovered 2 | . . 2 . Drone Launches . | . . . . Drone Recoveries . | . . . . Exploration | -11 -10 -10 -9 ------------- Run | Scr Mat Min Mat Turns Passed 1204 | 76 734 268 126 Spaces Moved 971 | 50 525 295 101 Core 38 | 16 . . 22 Treads . | . . . . Legs 132 | 34 98 . . Wheels 801 | . 427 295 79 Hover . | . . . . Flight . | . . . . Fastest Speed 50 | 50 90 90 90 Average Speed 94 | 97 97 90 94 Slowest Speed 250 | 120 150 90 250 Overloaded Moves . | . . . . Propulsion Burnouts . | . . . . Robots Hopped . | . . . . Cave-ins Triggered . | . . . . Exploration Rate (%) 37 | 4 59 77 10 Regions Visited 3 Branch Regions 1 Pre-discovered Areas . | . . . . Known Exits Taken . | . . . . Unknown Exits Taken 3 | 1 1 1 . Scrap Searched . | . . . . Spaces Dug . | . . . . Terrain Destroyed 6 | . 6 . . Melee . | . . . . Projectile . | . . . . AOE 6 | . 6 . . Terrain Rammed . | . . . . Walls Destroyed . | . . . . Machines Disabled . | . . . . Actions | -11 -10 -10 -9 --------- Run | Scr Mat Min Mat Total 1089 | 65 614 296 114 Wait . | . . . . Move 968 | 49 524 294 101 Hop . | . . . . Pick Up 12 | 6 4 1 1 Fast Attach 7 | 5 2 . . Attach 3 | . 2 . 1 Detach . | . . . . Swap 8 | . 5 1 2 Drop 7 | . 6 . 1 Fire 84 | 5 71 . 8 Melee . | . . . . Ram . | . . . . Kick . | . . . . Crush . | . . . . Escape Stasis . | . . . . Rewire . | . . . . Trap . | . . . . Miscellaneous . | . . . . Route ------- -11/Scrapyard -10/Materials (discovered 3 exits: [*Mat x2] / [*Min]) -10/Mines (discovered 3 exits: [*Mat x2] / Exi) -9/Materials History --------- Turn | Location | Event 15 | -11/Scrapyard | Discovered new exit (range 16) 77 | -11/Scrapyard | Entered Materials 301 | -10/Materials | Build established: Mutant 364 | -10/Materials | Discovered new exit (range 16) 636 | -10/Materials | Discovered new exit (range 11) 700 | -10/Materials | Discovered new exit (range 10) 811 | -10/Materials | Entered Mines 822 | -10/Mines | Met a Derelict bent on vengeance 886 | -10/Mines | Found a damaged Exp. Sensor Array with a note attached 888 | -10/Mines | Found Prototype Device 889 | -10/Mines | Identified Exp. Sensor Array 1029 | -10/Mines | Learned Materials emergency access door positions 1057 | -10/Mines | Discovered new exit (range 10) 1058 | -10/Mines | Identified exit to Exiles 1063 | -10/Mines | Discovered new exit (range 15) 1079 | -10/Mines | Entered Materials 1079 | -9/Materials | Evolved 2 slots: Power x1, Weapon x1 1205 | -9/Materials | Self-destructed Last Messages --------------- Acquired derelict log, extracted data. EXIT=FOUND PARAMETERS=POWER_1,WEAPON_1 LOCATION=UNKNOWN GOAL=ESCAPE Loading Materials emergency access points (x3)... Y-45 Defender destroyed. W-16 Scout destroyed. Overheating: Energy bleed (-23). Acquired 48 matter. U-05 Engineer builds a Door. Acquired Heat Sink. Dropped Sml. Laser. Wheel destroyed. Com. Wheel destroyed. Spread Laser destroyed. S-10 Pest destroyed. Beam Rifle destroyed. Assault Rifle destroyed. Lgt. Ion Engine destroyed. Map ----- +----------------------------------------------------+ | ???????????????????????????????????????????????? | | ???????????????????????????????????????????????? | | ???????????????????????????????????????????????? | | ???????????????????????????????????????????????? | | ???????????????????????????????????????????????? | | ???????????????????????????????????????????????? | | ???????????????????????????????????????????????# | | ????????????????????????????????????????######## | | ????????????????????????????????????????# # | | ????????????????????????????????????????# """ # | | ????????????????????????????????????????# """ + | | ????????????????????????????????????????# """ # | | ????????????????????????????????????????# # | | ????????????????????????????????????????# # | | ????????????????????????????????????????######## | | ???????????????????????????????????????????????# | | ???????????????????????????????????????????????# | | ???????????????????????????????????????????????# | | ???????????????????????????????????????????????# | | ???????????????????????????????????????????????# | | ???????????????????#???????????????????????????# | | ???????????????????# ??????????????????????????# | | ???????????????????# ?????????????????????????# | | ???????????????????# ########################## | | ???????????????????# | | ???????????????????# @ | | ???????????????????#####+####################### | | ???????????????????# #?????????????????# | | ???????????????????# #?????????????????# | | ???????????????????# #?????????????????# | | ???????????????????# #?????????????????# | | ???????????????????# #?????????????????# | | ???????????????????# #?????????????????# | | ???????????????????# #?????????????????? | | ???????????????????# #?????????????????? | | ???????????????????#######/###?????????????????? | | ?????????????????????????# #???????????????????? | | ?????????????????????????# #???????????????????? | | ?????????????????????????# #???????????????????? | | ????????????????????######/#???????????????????? | | ????????????????????# !#???????????????????? | | ????????????????????# [ ##??????????????????? | | ????????????????????# =! #??????????????????? | | ????????????????????# =! ##??????????????????? | | ????????????????????# = #???????????????????? | | ????????????????????# ! #???????????????????? | | ????????????????????####/###???????????????????? | | ???????????????????????!%%?????????????????????? | | ?????????????????????? ==?????????????????????? | | ????????????????????? ????????????????????? | +----------------------------------------------------+ Best States ------------- Heat Dissipation 38 Energy Generation 10 Energy Capacity 250 Matter Stores 300 Matter Capacity 300 Sight Range 16 Robot Scan Range 30 Terrain Scan Density 10 Core Shielding 20 Evasion (%) 50 Item Schematics ----------------- None Robot Schematics ------------------ None Fabricated ------------ Nothing Alien Tech Used ----------------- None Achievements -------------- Crack Shot Risk Taker Storm Trooper Challenges ------------ None Game ------ Seed ScanRegenerativeMallet Manual? 0 Play Time 00:22:31 Cumulative 1.3 hours Start 2021.03.10 @ 14:37:53 End 2021.03.10 @ 15:20:05 Sessions 1 Manual Loads 0 Difficulty Rogue Special Mode None Game No. 4 Rogue 4 Adventurer 0 Explorer 0 Win Type - Total 0 Types 0/0/0/0/0/0/0/0/0 Lore% 0 Gallery% 3 Achievement% 4 Wizard Run 0 Options --------- ASCII 1 Keyboard 0 Movement Arrows Keybinds 0 Fullscreen 2 Font 18/Terminus Map View 76x50 Tactical HUD 0 Map Filters NONE Filters NONE Steam 1 RUN: fbe92ced-799f-4c39-8873-db4fc1435e1e